fUST/lending_fUST_20251130
["ID","MTS","AMOUNT","RATE_DAILY","PERIOD"]
[395173081,1764510016377,1269.66787156,0.0001111,3]
[395173082,1764510023068,-174.76409051,5.956e-05,2]
[395173083,1764510025610,-179.17767833,5.956e-05,2]
[395173084,1764510186998,-220.0,5.445e-05,2]
[395173085,1764510187017,-116.97557073,5.5e-05,2]
[395173086,1764510189992,-103.02442927,5.5e-05,2]
[395173087,1764510190016,-158.88775033,5.698e-05,2]
[395173088,1764510193766,-249.87762995,5.698e-05,2]
[395173089,1764510199089,433.35530608,0.0001111,3]
[395173090,1764510202048,-281.95289885,5.641e-05,2]
[395173091,1764510202070,-275.80123763,5.698e-05,2]
[395173092,1764510325357,1066.68603211,0.00011095,3]
[395173093,1764510337120,-6.15166122,5.698e-05,2]
[395173094,1764510337140,-203.0,5.956e-05,2]
[395173095,1764510337161,-45.01210972,6.016e-05,2]
[395173096,1764510354476,384.10875849,5.896e-05,2]
[395173097,1764510369822,-384.10875849,5.956e-05,2]
[395173098,1764510369842,-872.98259838,6.016e-05,2]
[395173099,1764510369862,-300.0,6.259e-05,2]
[395173100,1764510369883,-300.0,6.259e-05,2]
[395173101,1764510369907,-1200.0,6.259e-05,2]
[395173102,1764510369926,-300.0,6.259e-05,2]
[395173103,1764510369946,-17897.8681163,6.26e-05,2]
[395173104,1764510369965,-261.6674397,6.26e-05,2]
[395173105,1764510369984,-1638.6853042,6.276e-05,2]
[395173106,1764510370003,-196.2505796,6.276e-05,2]
[395173107,1764510370022,-300.0,6.384e-05,2]
[395173108,1764510370042,-300.0,6.384e-05,2]
[395173109,1764510370062,-300.0,6.384e-05,2]
[395173110,1764510370082,-300.0,6.384e-05,2]
[395173111,1764510370101,-300.0,6.384e-05,2]
[395173112,1764510370121,-300.0,6.384e-05,2]
[395173113,1764510370140,-300.0,6.384e-05,2]
[395173114,1764510370159,-300.0,6.384e-05,2]
[395173115,1764510370177,-300.0,6.384e-05,2]
[395173116,1764510370200,-300.0,6.384e-05,2]
[395173117,1764510370221,-300.0,6.384e-05,2]
[395173118,1764510370243,-300.0,6.384e-05,2]
[395173119,1764510370264,-300.0,6.384e-05,2]
[395173120,1764510370284,-300.0,6.384e-05,2]
[395173121,1764510370307,-300.0,6.384e-05,2]
[395173122,1764510370331,-600.0,6.511e-05,2]
[395173123,1764510370352,-1200.0,6.846e-05,2]
[395173124,1764510370375,-500.0,6.846e-05,2]
[395173125,1764510370399,-500.0,6.846e-05,2]
[395173126,1764510370420,-155.91797285,6.846e-05,2]
[395173127,1764510370441,-467.0929986,6.846e-05,2]
[395173128,1764510370476,-500.0,6.846e-05,2]
[395173129,1764510370501,-500.0,6.846e-05,2]
[395173130,1764510370525,-500.0,6.846e-05,2]
[395173131,1764510370549,-500.0,6.846e-05,2]
[395173132,1764510370576,-500.0,6.846e-05,2]
[395173133,1764510370600,-500.0,6.846e-05,2]
[395173134,1764510370622,-322.83106819,6.846e-05,2]
[395173135,1764510370645,-500.0,6.846e-05,2]
[395173136,1764510370676,-500.0,6.846e-05,2]
[395173137,1764510370699,-500.0,6.846e-05,2]
[395173138,1764510370722,-500.0,6.846e-05,2]
[395173139,1764510370746,-500.0,6.846e-05,2]
[395173140,1764510370769,-500.0,6.846e-05,2]
[395173141,1764510370793,-500.0,6.846e-05,2]
[395173142,1764510370815,-500.0,6.846e-05,2]
[395173143,1764510370837,-500.0,6.846e-05,2]
[395173144,1764510370859,-500.0,6.846e-05,2]
[395173145,1764510370884,-500.0,6.846e-05,2]
[395173146,1764510370909,-500.0,6.846e-05,2]
[395173147,1764510370932,-500.0,6.846e-05,2]
[395173148,1764510370956,-500.0,6.846e-05,2]
[395173149,1764510370981,-500.0,6.846e-05,2]
[395173150,1764510371006,-500.0,6.846e-05,2]
[395173151,1764510371029,-500.0,6.846e-05,2]
[395173152,1764510371050,-500.0,6.846e-05,2]
[395173153,1764510371076,-500.0,6.846e-05,2]
[395173154,1764510371099,-500.0,6.846e-05,2]
[395173155,1764510371124,-500.0,6.846e-05,2]
[395173156,1764510371146,-366.92224451,6.846e-05,2]
[395173157,1764510371168,-500.0,6.846e-05,2]
[395173158,1764510371189,-500.0,6.846e-05,2]
[395173159,1764510371212,-500.0,6.846e-05,2]
[395173160,1764510371233,-500.0,6.846e-05,2]
[395173161,1764510371256,-500.0,6.846e-05,2]
[395173162,1764510371279,-500.0,6.846e-05,2]
[395173163,1764510371303,-500.0,6.846e-05,2]
[395173164,1764510371325,-500.0,6.846e-05,2]
[395173165,1764510371346,-384.28179466,6.846e-05,2]
[395173166,1764510371366,-271.99651028,6.846e-05,2]
[395173167,1764510371389,-500.0,6.846e-05,2]
[395173168,1764510371412,-500.0,6.846e-05,2]
[395173169,1764510371435,-500.0,6.846e-05,2]
[395173170,1764510371458,-500.0,6.846e-05,2]
[395173171,1764510371483,-500.0,6.846e-05,2]
[395173172,1764510371506,-353.50292036,6.846e-05,2]
[395173173,1764510371528,-500.0,6.846e-05,2]
[395173174,1764510371550,-500.0,6.846e-05,2]
[395173175,1764510371572,-500.0,6.846e-05,2]
[395173176,1764510371595,-500.0,6.846e-05,2]
[395173177,1764510371618,-500.0,6.846e-05,2]
[395173178,1764510371639,-10000.0,6.849e-05,2]
[395173179,1764510371660,-643.24077568,6.854e-05,2]
[395173180,1764510371680,-420.0,6.885e-05,2]
[395173181,1764510371701,-420.0,6.885e-05,2]
[395173182,1764510371722,-1680.0,6.885e-05,2]
[395173183,1764510371743,-420.0,6.885e-05,2]
[395173184,1764510371764,-3258.31956912,6.918e-05,2]
[395173185,1764510371788,-232.39024706,6.97e-05,2]
[395173186,1764510371809,-8651.8970288,6.971e-05,2]
[395173187,1764510371831,-196.2505796,7.011e-05,2]
[395173188,1764510371852,-17897.8681163,7.038e-05,2]
[395173189,1764510371875,-3258.31956912,7.059e-05,2]
[395173190,1764510372101,-1638.6853042,7.081e-05,2]
[395173191,1764510372122,-331.15396051,7.114e-05,2]
[395173192,1764510372143,-720.0,7.162e-05,2]
[395173193,1764510372163,-250.0,7.189e-05,2]
[395173194,1764510372182,-3258.31956912,7.199e-05,2]
[395173195,1764510372205,-210146.44697437,7.211e-05,2]
[395173196,1764510403132,-1017.89760689,7.139e-05,2]
[395173197,1764510443184,10000.01,7.111e-05,2]
[395173198,1764510443211,10000.01,7.111e-05,2]
[395173199,1764510443238,10000.01,7.111e-05,2]
[395173200,1764510471826,1289.4794843,7.04e-05,2]
[395173201,1764510485876,-1200.0,7.11e-05,2]
[395173202,1764510485906,-300.0,7.11e-05,2]
[395173203,1764510512093,162.67317294,7.11e-05,2]
[395173204,1764510520261,500.0,7.11e-05,2]
[395173205,1764510520295,501.75249166,7.11e-05,2]
[395173206,1764510520324,500.0,7.11e-05,2]
[395173207,1764510520353,500.0,7.11e-05,2]
[395173208,1764510520382,500.0,7.11e-05,2]
[395173209,1764510520413,396.60171427,7.11e-05,2]
[395173210,1764510520441,500.0,7.11e-05,2]
[395173211,1764510520473,500.0,7.11e-05,2]
[395173212,1764510520502,500.0,7.11e-05,2]
[395173213,1764510520535,260.3102017,7.11e-05,2]
[395173214,1764510520568,500.0,7.11e-05,2]
[395173215,1764510520596,500.0,7.11e-05,2]
[395173216,1764510520628,500.0,7.11e-05,2]
[395173217,1764510520660,299.70396044,7.11e-05,2]
[395173218,1764510520692,500.0,7.11e-05,2]
[395173219,1764510520721,500.0,7.11e-05,2]
[395173220,1764510520749,500.0,7.11e-05,2]
[395173221,1764510520776,500.0,7.11e-05,2]
[395173222,1764510520805,500.0,7.11e-05,2]
[395173223,1764510520838,500.0,7.11e-05,2]
[395173224,1764510520866,378.96845899,7.11e-05,2]
[395173225,1764510520887,121.03154101,7.11e-05,2]
[395173226,1764510520921,500.0,7.11e-05,2]
[395173227,1764510520954,466.5895889,7.11e-05,2]
[395173228,1764510520989,500.0,7.11e-05,2]
[395173229,1764510521021,500.0,7.11e-05,2]
[395173230,1764510521055,500.0,7.11e-05,2]
[395173231,1764510521094,500.0,7.11e-05,2]
[395173232,1764510521127,500.0,7.11e-05,2]
[395173233,1764510521158,500.0,7.11e-05,2]
[395173234,1764510521356,500.0,7.11e-05,2]
[395173235,1764510521394,500.0,7.11e-05,2]
[395173236,1764510521429,500.0,7.11e-05,2]
[395173237,1764510521459,500.0,7.11e-05,2]
[395173238,1764510521490,500.0,7.11e-05,2]
[395173239,1764510521521,500.0,7.11e-05,2]
[395173240,1764510521560,500.0,7.11e-05,2]
[395173241,1764510521598,500.0,7.11e-05,2]
[395173242,1764510521632,500.0,7.11e-05,2]
[395173243,1764510521669,500.0,7.11e-05,2]
[395173244,1764510523123,405.35530604,7.11e-05,2]
[395173245,1764510524542,251.52797869,7.11e-05,2]
[395173246,1764510529072,255.50558536,7.11e-05,2]
[395173247,1764510529096,244.49441464,7.11e-05,2]
[395173248,1764510529128,500.0,7.11e-05,2]
[395173249,1764510529174,500.0,7.11e-05,2]
[395173250,1764510529205,500.0,7.11e-05,2]
[395173251,1764510529248,500.0,7.11e-05,2]
[395173252,1764510529290,500.0,7.11e-05,2]
[395173253,1764510529326,500.0,7.11e-05,2]
[395173254,1764510529367,500.0,7.11e-05,2]
[395173255,1764510529397,500.0,7.11e-05,2]
[395173256,1764510529436,252.84563464,7.11e-05,2]
[395173257,1764510529467,500.0,7.11e-05,2]
[395173258,1764510529673,500.0,7.11e-05,2]
[395173259,1764510529714,500.0,7.11e-05,2]
[395173260,1764510529753,500.0,7.11e-05,2]
[395173261,1764510529783,500.0,7.11e-05,2]
[395173262,1764510529821,500.0,7.11e-05,2]
[395173263,1764510529862,500.0,7.11e-05,2]
[395173264,1764510529899,500.0,7.11e-05,2]
[395173265,1764510529938,500.0,7.11e-05,2]
[395173266,1764510529983,500.0,7.11e-05,2]
[395173267,1764510530015,500.0,7.11e-05,2]
[395173268,1764510530053,2.66995072,7.11e-05,2]
[395173269,1764510530079,497.33004928,7.11e-05,2]
[395173270,1764510530113,500.0,7.11e-05,2]
[395173271,1764510530144,500.0,7.11e-05,2]
[395173272,1764510530188,500.0,7.11e-05,2]
[395173273,1764510530229,500.0,7.11e-05,2]
[395173274,1764510530259,204.98712334,7.11e-05,2]
[395173275,1764510530297,500.0,7.11e-05,2]
[395173276,1764510530337,500.0,7.11e-05,2]
[395173277,1764510543240,300.0,7.11e-05,2]
[395173278,1764510547003,-189.21283302,7.111e-05,2]
[395173279,1764510549639,-500.0,7.111e-05,2]
[395173280,1764510551654,-500.0,7.111e-05,2]
[395173281,1764510552757,499.99999999,7.11e-05,2]
[395173282,1764510555418,-468.4753285,7.111e-05,2]
[395173283,1764510558061,-323.59327345,7.111e-05,2]
[395173284,1764510559537,-621.36842512,7.111e-05,2]
[395173285,1764510563071,-500.0,7.111e-05,2]
[395173286,1764510565826,-500.0,7.111e-05,2]
[395173287,1764510567337,-270.79777559,7.111e-05,2]
[395173288,1764510569500,-500.0,7.111e-05,2]
[395173289,1764510570553,500.0,7.11e-05,2]
[395173290,1764510571532,-500.0,7.111e-05,2]
[395173291,1764510571808,206.73576502,7.011e-05,2]
[395173292,1764510573174,-252.73880339,7.111e-05,2]
[395173293,1764510573385,1144.59441345,7.04e-05,2]
[395173294,1764510574754,500.0,7.11e-05,2]
[395173295,1764510575594,-310.78716698,7.111e-05,2]
[395173296,1764510583834,-500.0,7.111e-05,2]
[395173297,1764510590437,600.0,6.494e-05,2]
[395173298,1764510595390,500.0,7.11e-05,2]
[395173299,1764510601495,300.0,7.11e-05,2]
[395173300,1764510602367,199.0,7.11e-05,2]
[395173301,1764510602752,300.0,7.11e-05,2]
[395173302,1764510602784,1200.0,7.11e-05,2]
[395173303,1764510605224,47.36264892,7.111e-05,2]
[395173304,1764510605250,163.63735108,7.111e-05,2]
[395173305,1764510607497,-444.94808583,7.111e-05,2]
[395173306,1764510608947,-391.22806979,7.111e-05,2]
[395173307,1764510611239,-362.82891341,7.111e-05,2]
[395173308,1764510614877,-265.11705708,7.111e-05,2]
[395173309,1764510618062,-408.71259583,7.111e-05,2]
[395173310,1764510620380,-218.3673483,7.111e-05,2]
[395173311,1764510623860,-239.21321851,7.111e-05,2]
[395173312,1764510625301,-218.68026489,7.111e-05,2]
[395173313,1764510626869,-504.48022156,7.111e-05,2]
[395173314,1764510630061,-287.88293602,7.111e-05,2]
[395173347,1764510632117,-91986.15263906,7.111e-05,2]
[395173348,1764510632128,-625.36181593,7.111e-05,2]
[395173355,1764510632861,-4624.983028,7.111e-05,2]
[395173630,1764510640910,-2e-08,7.111e-05,2]
[395173651,1764510641106,-13756.94912138,7.111e-05,2]
[395173655,1764510641129,-72421.01707274,7.111e-05,2]
[395173688,1764510643268,-1940.55086211,7.111e-05,2]
[395173689,1764510643452,-113.0997341,7.111e-05,2]
[395173690,1764510643475,-1504.3502,7.111e-05,2]
[395173697,1764510646551,-3327.79049917,7.111e-05,2]
[395173702,1764510660133,900.71262615,7.04e-05,2]
[395173703,1764510662781,300.0,7.11e-05,2]
[395173704,1764510676389,500.0,7.11e-05,2]
[395173705,1764510676897,158.70237792,7.11e-05,2]
[395173706,1764510677244,298.59337996,7.04e-05,2]
[395173707,1764510693442,500.0,7.11e-05,2]
[395173708,1764510693484,500.0,7.11e-05,2]
[395173709,1764510693517,500.0,7.11e-05,2]
[395173710,1764510693559,500.0,7.11e-05,2]
[395173711,1764510693597,451.06454867,7.11e-05,2]
[395173712,1764510693643,500.0,7.11e-05,2]
[395173713,1764510693682,500.0,7.11e-05,2]
[395173714,1764510693729,500.0,7.11e-05,2]
[395173715,1764510693771,500.0,7.11e-05,2]
[395173716,1764510693809,500.0,7.11e-05,2]
[395173717,1764510703168,859.47,6.969e-05,2]
[395173718,1764510703312,184.828,6.969e-05,2]
[395173719,1764510717764,500.0,7.11e-05,2]
[395173720,1764510717816,629.04195141,7.11e-05,2]
[395173721,1764510719912,206.73576502,7.011e-05,2]
[395173722,1764510732214,347.22399979,7.11e-05,2]
[395173723,1764510732239,152.77600021,7.11e-05,2]
[395173724,1764510732270,500.0,7.11e-05,2]
[395173725,1764510732315,500.0,7.11e-05,2]
[395173726,1764510732372,500.0,7.11e-05,2]
[395173727,1764510732429,500.0,7.11e-05,2]
[395173728,1764510732487,500.0,7.11e-05,2]
[395173729,1764510732543,534.51614607,7.11e-05,2]
[395173730,1764510744281,489.81,7.111e-05,2]
[395173731,1764510774746,1200.0,7.11e-05,2]
[395173732,1764510783169,300.0,7.11e-05,2]
[395173733,1764510784879,224.08375724,6.864e-05,2]
[395173734,1764510787574,256.09572256,6.918e-05,2]
[395173735,1764510790415,400.14956651,7.11e-05,2]
[395173736,1764510842996,500.0,6.937e-05,2]
[395173737,1764510843074,300.0,7.11e-05,2]
[395173738,1764510890752,206.73576502,7.011e-05,2]
[395173739,1764510901756,224.007059,6.864e-05,2]
[395173740,1764510902099,300.0,7.11e-05,2]
[395173741,1764510902389,300.0,7.11e-05,2]
[395173742,1764510904789,256.00806743,6.864e-05,2]
[395173743,1764510907003,-658.7023779,7.111e-05,2]
[395173744,1764510907072,400.01260536,6.864e-05,2]
[395173745,1764510908951,-174.9151614,7.111e-05,2]
[395173746,1764510909754,1200.0,7.11e-05,2]
[395173747,1764510911025,-166.38246068,7.111e-05,2]
[395173748,1764510913031,-500.0,7.111e-05,2]
[395173749,1764510916186,255.8153106,7.11e-05,2]
[395173750,1764510916214,244.1846894,7.11e-05,2]
[395173751,1764510916261,500.0,7.11e-05,2]
[395173752,1764510916300,341.29762208,7.11e-05,2]
[395173753,1764510940193,300.5320982,0.0001111,3]
[395173754,1764510963501,300.0,7.11e-05,2]
[395173755,1764511022882,300.0,7.11e-05,2]
[395173756,1764511077379,1200.0,7.11e-05,2]
[395173757,1764511082688,300.0,7.11e-05,2]
[395173758,1764511118514,3346.67163151,0.0001111,3]
[395173759,1764511142576,300.0,7.11e-05,2]
[395173761,1764511202734,300.0,7.11e-05,2]
[395173762,1764511205195,211.0,7.111e-05,2]
[395173763,1764511207381,197.85798399,7.111e-05,2]
[395173764,1764511209925,1200.0,7.11e-05,2]
[395173765,1764511209960,500.0,7.111e-05,2]
[395173766,1764511210130,250.0,7.111e-05,2]
[395173767,1764511210593,500.0,7.111e-05,2]
[395173768,1764511211257,500.0,7.111e-05,2]
[395173769,1764511212419,250.0,7.111e-05,2]
[395173770,1764511212546,231.28369723,7.111e-05,2]
[395173771,1764511212644,253.18369355,7.111e-05,2]
[395173772,1764511212898,2121.20231375,7.111e-05,2]
[395173773,1764511212922,380.25049856,7.111e-05,2]
[395173774,1764511215382,500.0,7.111e-05,2]
[395173775,1764511215439,500.0,7.111e-05,2]
[395173776,1764511216014,500.0,7.111e-05,2]
[395173777,1764511216103,500.0,7.111e-05,2]
[395173778,1764511216649,500.0,7.111e-05,2]
[395173779,1764511216756,500.0,7.111e-05,2]
[395173780,1764511217291,500.0,7.111e-05,2]
[395173781,1764511217427,159.361492,7.111e-05,2]
[395173782,1764511217949,506.42489316,7.111e-05,2]
[395173783,1764511220454,-2433.67424601,7.111e-05,2]
[395173784,1764511220510,-10000.01,7.111e-05,2]
[395173785,1764511220533,-10000.01,7.111e-05,2]
[395173786,1764511220577,-10000.01,7.111e-05,2]
[395173787,1764511220719,-10000.01,7.111e-05,2]
[395173788,1764511221014,-10000.01,7.111e-05,2]
[395173789,1764511221102,-10000.01,7.111e-05,2]
[395173790,1764511228337,-174.61919141,7.111e-05,2]
[395173791,1764511240768,179.17767833,7.04e-05,2]
[395173792,1764511248300,-9820.83232167,7.111e-05,2]
[395173793,1764511248564,-10000.01,7.111e-05,2]
[395173794,1764511248987,-10000.01,7.111e-05,2]
[395173795,1764511249217,-10000.01,7.111e-05,2]
[395173796,1764511249349,500.0,7.11e-05,2]
[395173797,1764511249387,8971.59393885,7.04e-05,2]
[395173798,1764511249411,56.8144196,7.04e-05,2]
[395173799,1764511249465,-471.60164155,7.111e-05,2]
[395173800,1764511249592,-10000.01,7.111e-05,2]
[395173801,1764511249766,-10000.01,7.111e-05,2]
[395173802,1764511250014,-10000.01,7.111e-05,2]
[395173803,1764511250161,-10000.01,7.111e-05,2]
[395173804,1764511250288,948.51936356,0.0001111,3]
[395173805,1764511405317,1562.24017781,6.8e-05,2]
[395173806,1764511406789,189.8631296,6.105e-05,2]
[395173807,1764511447378,408.71259583,6.831e-05,2]
[395173808,1764511455566,408.71259583,6.831e-05,2]
[395173809,1764511464384,408.71259583,6.831e-05,2]
[395173810,1764511472226,699.62540476,6.865e-05,2]
[395173811,1764511480309,699.62540476,6.865e-05,2]
[395173812,1764511483953,500.0,6.891e-05,2]
[395173813,1764511489710,699.62540476,6.865e-05,2]
[395173814,1764511498810,699.62540476,6.865e-05,2]
[395173815,1764511503613,177.93,1e-05,2]
[395173816,1764511507376,584.18008248,6.865e-05,2]
[395173817,1764511515514,699.62540476,6.865e-05,2]
[395173818,1764511523591,699.62540476,6.865e-05,2]
[395173819,1764511538786,699.62540476,6.865e-05,2]
[395173820,1764511547791,699.62540476,6.865e-05,2]
[395173821,1764511556528,699.62540476,6.865e-05,2]
[395173822,1764511558735,1254.7706554,0.0001111,3]
[395173823,1764511563241,177.93,1e-05,2]
[395173824,1764511563591,177.93,2.3e-05,2]
[395173825,1764511564364,699.62540476,6.865e-05,2]
[395173826,1764511573423,699.62540476,6.865e-05,2]
[395173827,1764511581744,686.16046516,6.865e-05,2]
[395173828,1764511581768,13.4649396,6.865e-05,2]
[395173829,1764511589857,699.62540476,6.865e-05,2]
[395173831,1764511597810,699.62540476,6.865e-05,2]
[395173832,1764511606376,699.62540476,6.865e-05,2]
[395173833,1764511614419,699.62540476,6.865e-05,2]
[395173834,1764511622625,152.4,1e-05,2]
[395173835,1764511622926,699.62540476,6.865e-05,2]
[395173836,1764511622989,152.4,1.1e-05,2]
[395173837,1764511623718,152.4,1.1e-05,2]
[395173838,1764511624042,152.4,1.2e-05,2]
[395173839,1764511624437,152.4,1.2e-05,2]
[395173840,1764511624768,152.4,1.3e-05,2]
[395173841,1764511625120,152.4,1.3e-05,2]
[395173842,1764511625569,152.4,1.4e-05,2]
[395173843,1764511625967,152.4,1.4e-05,2]
[395173844,1764511626293,152.4,1.5e-05,2]
[395173845,1764511626614,152.4,1.5e-05,2]
[395173846,1764511626975,152.4,1.6e-05,2]
[395173847,1764511627434,152.4,1.6e-05,2]
[395173848,1764511627669,152.4,1.7e-05,2]
[395173849,1764511628001,152.4,1.7e-05,2]
[395173850,1764511628338,152.4,1.8e-05,2]
[395173851,1764511628722,152.4,1.8e-05,2]
[395173852,1764511629062,152.4,1.9e-05,2]
[395173853,1764511629388,152.4,1.9e-05,2]
[395173854,1764511629718,152.4,2e-05,2]
[395173855,1764511630150,152.4,2e-05,2]
[395173856,1764511630702,152.4,2.1e-05,2]
[395173857,1764511631070,152.4,2.1e-05,2]
[395173858,1764511631407,152.4,2.2e-05,2]
[395173859,1764511631791,152.4,2.3e-05,2]
[395173860,1764511676357,-699.62540476,6.728e-05,2]
[395173861,1764511676904,-617.32784882,6.796e-05,2]
[395173862,1764511679377,-82.29755594,6.796e-05,2]
[395173863,1764511679400,-162.37887149,6.865e-05,2]
[395173864,1764511680826,-407.61590738,6.865e-05,2]
[395173865,1764511682290,-129.63062589,6.865e-05,2]
[395173866,1764511682313,-191.17768377,6.935e-05,2]
[395173867,1764511682428,152.37,1e-05,2]
[395173868,1764511682734,152.37,1.6e-05,2]
[395173869,1764511683171,152.37,2.3e-05,2]
[395173870,1764511684427,-226.89935553,6.935e-05,2]
[395173871,1764511686029,-180.71655185,6.935e-05,2]
[395173872,1764511689126,-100.83181361,6.935e-05,2]
[395173873,1764511689147,-83.93637163,6.939e-05,2]
[395173874,1764511692653,-190.33267564,6.87e-05,2]
[395173875,1764511692675,-35.44000947,6.939e-05,2]
[395173876,1764511694257,-154.89266617,6.939e-05,2]
[395173877,1764511694280,-345.10733383,6.969e-05,2]
[395173878,1764511707744,342.46866617,6.83e-05,2]
[395173879,1764511716318,342.46866617,6.83e-05,2]
[395173880,1764511731373,342.46866617,6.83e-05,2]
[395173881,1764511739329,342.46866617,6.83e-05,2]
[395173882,1764511754345,342.46866617,6.83e-05,2]
[395173883,1764511762156,342.46866617,6.83e-05,2]
[395173884,1764511777067,342.46866617,6.83e-05,2]
[395173885,1764511785241,342.46866617,6.83e-05,2]
[395173886,1764511792007,-342.46866617,6.899e-05,2]
[395173887,1764511792031,-60.18308015,6.934e-05,2]
[395173888,1764511793428,-297.07510963,6.934e-05,2]
[395173889,1764511796596,-186.53025019,6.934e-05,2]
[395173890,1764511798051,-141.8444567,6.934e-05,2]
[395173891,1764511798074,-83.22793466,6.969e-05,2]
[395173892,1764511800236,328.37470689,6.865e-05,2]
[395173893,1764511806920,-241.75515424,6.969e-05,2]
[395173894,1764511810290,-227.48557727,6.899e-05,2]
[395173895,1764511810312,-17.48557727,6.969e-05,2]
[395173896,1764511810347,-139.99008917,6.969e-05,2]
[395173897,1764511812746,-70.00991083,6.969e-05,2]
[395173898,1764511812769,-184.82908141,6.969e-05,2]
[395173899,1764511812792,-63.88562003,6.971e-05,2]
[395173900,1764511814346,-225.67166388,6.971e-05,2]
[395173901,1764511815811,-42.28789777,6.971e-05,2]
[395173902,1764511815834,-257.71210223,7.001e-05,2]
[395173903,1764511821759,-235.57215521,7.001e-05,2]
[395173904,1764511824384,-190.28111491,6.931e-05,2]
[395173905,1764511825850,-397.34825368,6.931e-05,2]
[395173906,1764511827350,-379.69304451,6.931e-05,2]
[395173907,1764511829802,-261.06993551,6.931e-05,2]
[395173908,1764511829826,-60.83073546,7.001e-05,2]
[395173909,1764511831330,-300.0,7.001e-05,2]
[395173912,1764511832314,-437.76842394,6.931e-05,2]
[395173913,1764511832323,-578.94031678,7.001e-05,2]
[395173945,1764511838465,-288.62129637,7.001e-05,2]
[395173947,1764511838475,-300.0,7.007e-05,2]
[395173949,1764511838485,-300.0,7.007e-05,2]
[395173951,1764511838494,-300.0,7.007e-05,2]
[395173953,1764511838504,-300.0,7.007e-05,2]
[395173955,1764511838514,-1200.0,7.007e-05,2]
[395173957,1764511838524,-273.06550372,7.007e-05,2]
[395173959,1764511838534,-453.43583384,7.007e-05,2]
[395173964,1764511838577,-46.56416616,7.007e-05,2]
[395173966,1764511838587,-500.0,7.007e-05,2]
[395173968,1764511838597,-96.52926532,7.007e-05,2]
[395173970,1764511838609,-264.7516212,7.007e-05,2]
[395173972,1764511838619,-386.7926955,7.007e-05,2]
[395173974,1764511838631,-113.2073045,7.007e-05,2]
[395173976,1764511838640,-500.0,7.007e-05,2]
[395173978,1764511838650,-614.19349651,7.007e-05,2]
[395173980,1764511838659,-478.44698251,7.007e-05,2]
[395173982,1764511838669,-500.0,7.007e-05,2]
[395173984,1764511838680,-214.33756828,7.007e-05,2]
[395173986,1764511838691,-282.83175995,7.007e-05,2]
[395173989,1764511838708,-2.83067177,7.007e-05,2]
[395173991,1764511838718,-500.0,7.007e-05,2]
[395173993,1764511838727,-391.78135999,7.007e-05,2]
[395173995,1764511838739,-108.21864001,7.007e-05,2]
[395173997,1764511838748,-500.0,7.007e-05,2]
[395173999,1764511838757,-223.701147,7.007e-05,2]
[395174001,1764511838767,-331.16293549,7.007e-05,2]
[395174149,1764511840662,-288.62129637,6.931e-05,2]
[395174151,1764511840671,-168.83706451,7.007e-05,2]
[395174152,1764511840680,-500.0,7.007e-05,2]
[395174154,1764511840689,-500.0,7.007e-05,2]
[395174156,1764511840698,-500.0,7.007e-05,2]
[395174158,1764511840707,-500.0,7.007e-05,2]
[395174160,1764511840716,-500.0,7.007e-05,2]
[395174162,1764511840725,-500.0,7.007e-05,2]
[395174164,1764511840734,-500.0,7.007e-05,2]
[395174166,1764511840743,-500.0,7.007e-05,2]
[395174168,1764511840753,-165.85899823,7.007e-05,2]
[395174170,1764511840761,-500.0,7.007e-05,2]
[395174172,1764511840770,-500.0,7.007e-05,2]
[395174174,1764511840779,-500.0,7.007e-05,2]
[395174176,1764511840788,-500.0,7.007e-05,2]
[395174177,1764511840797,-500.0,7.007e-05,2]
[395174179,1764511840806,-500.0,7.007e-05,2]
[395174181,1764511840819,-500.0,7.007e-05,2]
[395174183,1764511840828,-500.0,7.007e-05,2]
[395174185,1764511840837,-500.0,7.007e-05,2]
[395174187,1764511840846,-500.0,7.007e-05,2]